[Event "56th Ilmar Raud Memorial 2022"]
[Site "Viljandi"]
[Date "2022.07.07"]
[Round "6.3"]
[White "Pultinevicius, Paulius"]
[Black "Rychagov, Nikita"]
[Result "1-0"]
[ECO "D63"]
[WhiteElo "2539"]
[BlackElo "2076"]
[Annotator "TA"]
[PlyCount "113"]
[EventDate "2022.07.05"]
[EventType "swiss"]
[EventCountry "EST"]
[SourceTitle "playchess.com"]
[Source "ChessBase"]
[SourceQuality "1"]
[TimeControl "40/5400+30:900+30"]

{[%evp 14,113,18,0,11,3,16,15,17,18,8,1,1,8,16,8,8,14,0,2,1,4,4,0,5,0,18,18,13,-4,20,4,20,9,22,7,43,19,15,24,58,45,60,32,148,134,200,197,182,166,166,195,200,197,212,203,179,194,236,197,176,256,256,206,246,166,600,518,2378,1815,2681,2539,8394,6337,1561,814,29960,29968,29968,29970,29970,29971,29971,29972,29972,29973,29973,29974,29974,29975,29975,29976,29979,29980,29980,29981,29981,29980,29980,29981,29980,29981]} 1. d4 {[%emt 0:00:02]} d5 {[%emt 0:00:04]} 2. c4 {[%emt 0:00:03]} e6 {[%emt 0:00:03]} 3. Nc3 {[%emt 0:00:03]} Nf6 {[%emt 0:00:03]} 4. Nf3 {[%emt 0:00:04]} Be7 {[%emt 0:00:04]} 5. Bg5 {[%emt 0:00:04]} h6 {[%emt 0:00:03]} 6. Bh4 {[%emt 0:00:03]} O-O {[%emt 0:00:05]} 7. e3 {[%emt 0:00:02]} Nbd7 {[%emt 0:00:05]} 8. Rc1 {[%emt 0:00:07]} c5 {[%emt 0:00:07] D63: Queen's Gambit Declined: Classical: 7 Rc1.} 9. dxc5 {[%emt 0:00:04]} dxc4 {[%emt 0:00:06]} 10. c6 $1 {[%emt 0:00:05] 10.c6 is better than 10.Bxc4.} bxc6 {[%emt 0:00:03] The position is equal.} 11. Bxc4 {[%emt 0:00:03]} Nb6 {[%emt 0:00:07]} 12. Qxd8 {[%emt 0:01:09]} Rxd8 {[%emt 0:00:07]} 13. Be2 {[%emt 0:00:04]} Bb7 {[%emt 0:00:13]} 14. O-O {[%emt 0:00:10]} c5 {[%emt 0:06:08] [#]} 15. Ne5 $146 {[%emt 0:00:18]} ({Predecessor:} 15. Rfd1 Kf8 16. Ne5 Rxd1+ 17. Rxd1 Nfd5 18. Bxe7+ Kxe7 19. Nxd5+ exd5 20. f4 Rc8 21. Kf2 Rc7 22. h4 Nd7 23. Nxd7 {½-½ (24) Korobov,A (2685)-Tomashevsky,E (2708) Yasnaya Polyana 2021}) 15... g5 {[%emt 0:01:01]} 16. Bg3 {[%emt 0:00:08]} Rd2 {[%emt 0:00:29]} 17. Rfd1 {[%emt 0:00:42]} Rad8 {[%emt 0:00:05]} 18. f3 {[%emt 0:02:58] Against Ne4} Rxd1+ {[%emt 0:03:38]} 19. Rxd1 {[%emt 0:00:21]} Rxd1+ {[%emt 0:00:23]} 20. Nxd1 {[%emt 0:01:42]} Nfd5 {[%emt 0:04:41]} 21. Bb5 {[%emt 0:02:52]} Bf6 {[%emt 0:07:28]} 22. Kf1 {[%emt 0:03:32]} h5 {[%emt 0:10:20] And now ...h4 would win.} 23. h3 {[%emt 0:08:05]} a6 {[%emt 0:01:56]} (23... h4 $5 24. Bh2 a6 $11) 24. Be2 {[%emt 0:00:35]} a5 {[%emt 0:16:46]} (24... h4 $5 25. Bh2 Be7 $11) 25. Nc4 {[%emt 0:05:29]} Nxc4 {[%emt 0:01:00]} 26. Bxc4 {[%emt 0:00:05]} Kf8 {[%emt 0:10:43]} 27. Be1 {[%emt 0:01:26]} Bd8 {[%emt 0:01:16]} 28. Bd2 {[%emt 0:03:33]} Ke7 {[%emt 0:08:25] White leaves nothing to chance now.} (28... g4 $14) 29. e4 $16 {[%emt 0:01:43][%csl LRd5,LRg5]} Nf4 {[%emt 0:00:07]} (29... Nb6 $16 {is a better defense.}) 30. h4 $1 $18 {[%emt 0:00:21]} f6 {[%emt 0:01:01]} 31. hxg5 {[%emt 0:00:06]} fxg5 {[%emt 0:00:06]} 32. g3 {[%emt 0:00:04]} Nh3 {[%emt 0:00:16]} 33. Nf2 {[%emt 0:12:30] Prevents g4.} Nxf2 {[%emt 0:00:08]} 34. Bxg5+ {[%emt 0:00:43]} ({Not} 34. Kxf2 Kd6 $14) 34... Kd7 {[%emt 0:00:18] [#]} 35. Bb5+ $1 {[%emt 0:00:20]} Kc8 {[%emt 0:00:06]} 36. Bxd8 {[%emt 0:00:14]} Nxe4 {[%emt 0:00:05]} 37. fxe4 {[%emt 0:00:12]} ({Don't do} 37. Bxa5 $6 Nxg3+ 38. Kf2 Nf5 $16) 37... Kxd8 {[%emt 0:00:04][%mdl 4096] Endgame KB-KB} 38. e5 {[%emt 0:00:05]} Bf3 {[%emt 0:01:33]} 39. Kf2 {[%emt 0:00:29]} Bd1 {[%emt 0:00:22]} (39... Bd5 40. a3 Ke7) 40. Ke3 {[%emt 0:00:00]} Ke7 {[%emt 0:00:00] [#]} (40... a4 $142 41. Kd2 Bf3 42. Bxa4 Ke7) 41. Kd3 $1 {[%emt 0:22:50]} Kf7 {[%emt 0:00:39]} 42. Kc4 {[%emt 0:00:26]} Kg6 {[%emt 0:01:51]} 43. Kxc5 {[%emt 0:00:31] Threatening mate with Bd7.} Kf5 {[%emt 0:00:38]} 44. Kd6 {[%emt 0:00:06] Intending Bd7 and mate.} Kg4 {[%emt 0:00:12]} 45. Kxe6 {[%emt 0:00:11] White mates.} Kxg3 {[%emt 0:00:06]} 46. Kd6 {[%emt 0:04:08]} h4 {[%emt 0:00:18]} 47. e6 {[%emt 0:00:08]} h3 {[%emt 0:00:22]} 48. e7 {[%emt 0:00:07]} h2 {[%emt 0:00:05]} 49. Bc6 {[%emt 0:13:21]} Bh5 {[%emt 0:00:38]} 50. Kd7 {[%emt 0:00:27]} Kf4 {[%emt 0:01:26]} 51. e8=Q {[%emt 0:00:11]} Bxe8+ {[%emt 0:00:06]} 52. Kxe8 {[%emt 0:00:06] KB-KPP} Ke5 {[%emt 0:00:26]} 53. Kd7 {[%emt 0:00:19]} Kd4 {[%emt 0:00:23]} 54. Kc7 {[%emt 0:01:41]} Kc5 {[%emt 0:00:18]} 55. Kb7 {[%emt 0:00:29]} a4 {[%emt 0:00:20]} 56. a3 {[%emt 0:00:20]} Kc4 {[%emt 0:00:06]} 57. Kb6 {[%emt 0:00:06] Weighted Error Value: White=0.05 (flawless) /Black=0.40} 1-0

[Event "56th Ilmar Raud Memorial 2022"]
[Site "Viljandi"]
[Date "2022.07.07"]
[Round "6.4"]
[White "Miezis, Normunds"]
[Black "Haitin, Ilja"]
[Result "1/2-1/2"]
[ECO "B14"]
[WhiteElo "2446"]
[BlackElo "2363"]
[Annotator "TA"]
[PlyCount "79"]
[EventDate "2022.07.05"]
[EventType "swiss"]
[EventCountry "EST"]
[SourceTitle "playchess.com"]
[Source "ChessBase"]
[SourceQuality "1"]
[TimeControl "40/5400+30:900+30"]

{[%evp 14,79,15,14,29,0,22,9,2,0,0,0,0,0,0,0,0,-14,17,4,31,0,0,0,34,25,27,24,26,22,37,52,59,0,80,-4,-6,-11,-12,-28,-21,-166,-54,-52,-36,-52,-50,-39,-28,-28,-13,-18,-21,-19,-8,-8,0,0,0,0,0,0,0,0,0,0,0,0]} 1. c4 {[%emt 0:00:06]} c6 {[%emt 0:00:05]} 2. e4 {[%emt 0:01:00]} d5 {[%emt 0:00:02]} 3. cxd5 {[%emt 0:00:27]} cxd5 {[%emt 0:00:04]} 4. exd5 {[%emt 0:00:13]} Nf6 {[%emt 0:00:02]} 5. Nc3 {[%emt 0:01:56]} Nxd5 {[%emt 0:00:04]} 6. Nf3 {[%emt 0:00:45]} e6 {[%emt 0:00:11]} 7. d4 {[%emt 0:01:24]} Bb4 {[%emt 0:00:05] 7...Nxc3 is becoming the main line.} 8. Bd2 {[%emt 0:01:02]} Bd7 {[%emt 0:00:08] B14: Caro-Kann: Panov-Botvinnik Attack with 5...e6 and 5...g6.} 9. Bd3 {[%emt 0:02:54]} Bc6 {[%emt 0:00:23]} 10. O-O {[%emt 0:01:26][%cal Bh1f1,Bf1e1,Be1e4,Be4h4,Bh4h3][%mdl 32]} Nd7 {[%emt 0:15:01]} 11. Re1 {[%emt 0:07:48] [#]} O-O $146 {[%emt 0:05:02]} ({Predecessor:} 11... Be7 12. Rc1 O-O 13. Bb1 Rc8 14. Qe2 Nxc3 15. Rxc3 Bd5 16. Rxc8 Qxc8 17. Rc1 Qb8 {½-½ (40) Murzin,V (2502)-Artemiev,V (2704) Krasnaya Polyana 2021}) 12. Be4 {[%emt 0:22:42]} Nxc3 {[%emt 0:04:29]} (12... N7f6 {feels hotter.} 13. Nxd5 Nxd5 14. Ne5 Bxd2 15. Qxd2 Rc8) 13. bxc3 {[%emt 0:01:37][%cal Bb2c3,Bc3c4,Bc4c5][%mdl 32] [#] Bxc6 is the strong threat.} Bxe4 {[%emt 0:04:29]} 14. Rxe4 {[%emt 0:00:15]} Be7 {[%emt 0:02:52]} 15. Qe2 {[%emt 0:04:51]} a6 {[%emt 0:06:32]} 16. c4 {[%emt 0:03:22]} Nf6 {[%emt 0:09:43]} 17. Rh4 {[%emt 0:07:16]} b5 {[%emt 0:06:14]} 18. c5 $1 {[%emt 0:07:03]} (18. cxb5 axb5 19. Qxb5 Qd5 20. Qxd5 Nxd5 $15) 18... b4 {[%emt 0:09:15]} 19. Ne5 {[%emt 0:06:17]} (19. Bxb4 $2 Nd5 20. Rh3 Nxb4 $19) 19... Rc8 {[%emt 0:08:27] Inhibits Nc6.} 20. Qd3 {[%emt 0:05:46]} (20. Bxb4 $2 Nd5 21. Rh3 Nxb4 $19) 20... g6 {[%emt 0:01:12]} 21. Rh3 {[%emt 0:02:23]} (21. Bxb4 $2 Nd5 22. Rh3 Nxb4 $19) 21... a5 {[%emt 0:03:00]} 22. Bh6 {[%emt 0:05:35]} Re8 {[%emt 0:00:50]} 23. Re1 {[%emt 0:04:08]} (23. Rg3 $14 Bf8 24. Bg5) 23... Nd7 {[%emt 0:12:36] [#]} (23... Qd5 $11 {keeps the balance.}) 24. Bf4 {[%emt 0:05:38] 0x0.0022fcfd193edp-1022s more active pieces.} ({White should play} 24. Nc4 $1 $16) 24... Nxe5 $11 {[%emt 0:06:35]} 25. Bxe5 {[%emt 0:00:25]} ({Reject} 25. Rxe5 Bf6 26. Qd2 (26. Re4 Qd5 $17) 26... Bxe5 27. Bxe5 f6 $17) 25... f6 {[%emt 0:02:42]} 26. Bf4 {[%emt 0:01:57]} Qd5 {[%emt 0:00:03]} 27. g4 {[%emt 0:01:15]} (27. Rhe3 $1 $11 {and White is okay.} e5 28. dxe5 Qxd3 29. Rxd3) 27... e5 {[%emt 0:01:58]} ({Black should try} 27... Qxa2 $19 {[%cal Oe6e5] Strongly threatening ...e5!} 28. Rhe3 Bf8) 28. dxe5 $15 {[%emt 0:01:41]} Qxd3 {[%emt 0:00:13]} ({Much worse is} 28... Qxa2 29. Re2 Qe6 30. exf6 Qxg4+ 31. Rg3 Qxf4 32. fxe7 $11) 29. Rxd3 {[%emt 0:00:04] Black must now prevent exf6.} Bxc5 {[%emt 0:01:37]} 30. Kf1 {[%emt 0:01:18]} fxe5 {[%emt 0:00:14]} 31. Bxe5 {[%emt 0:00:39]} Rcd8 {[%emt 0:00:16]} 32. Rxd8 {[%emt 0:00:45] The position is equal.} Rxd8 $11 {[%emt 0:00:01][%mdl 4096] Endgame KRB-KRB} 33. Ke2 {[%emt 0:01:05]} a4 {[%emt 0:01:07]} 34. f4 {[%emt 0:00:13]} Kf7 {[%emt 0:00:34]} 35. Rc1 {[%emt 0:00:15]} Be7 {[%emt 0:00:52]} 36. Rc7 {[%emt 0:00:25]} Ke6 {[%emt 0:00:25]} 37. Rc6+ {[%emt 0:01:02]} Kd5 {[%emt 0:00:18]} 38. Rc7 {[%emt 0:00:27]} Ke6 {[%emt 0:00:20]} 39. Rc6+ {[%emt 0:00:29]} Kd5 {[%emt 0:00:34]} 40. Rc7 {[%emt 0:02:36] Weighted Error Value: White=0.18 (very precise) /Black=0.13 (very precise)} 1/2-1/2

[Event "56th Ilmar Raud Memorial 2022"]
[Site "Viljandi"]
[Date "2022.07.07"]
[Round "6.5"]
[White "Sakalauskas, Vaidas"]
[Black "Cruz Lledo, Pablo"]
[Result "1-0"]
[ECO "E14"]
[WhiteElo "2327"]
[BlackElo "2433"]
[Annotator "TA"]
[PlyCount "73"]
[EventDate "2022.07.05"]
[EventType "swiss"]
[EventCountry "EST"]
[SourceTitle "playchess.com"]
[Source "ChessBase"]
[SourceQuality "1"]
[TimeControl "40/5400+30:900+30"]

{[%evp 21,73,40,41,41,41,43,52,-40,27,12,8,-42,-35,-45,-40,-41,-41,-39,-37,-112,0,0,0,0,140,17,77,79,204,181,210,213,213,227,551,536,522,372,825,466,462,400,654,619,1068,1051,1050,1055,1031,1035,1236,1198,29998,29999]} 1. d4 {[%emt 0:00:03]} d5 {[%emt 0:04:20]} 2. c4 {[%emt 0:00:14]} e6 {[%emt 0:00:05]} 3. Nc3 {[%emt 0:01:22]} Be7 {[%emt 0:00:42]} 4. Nf3 {[%emt 0:04:40]} Nf6 {[%emt 0:01:32]} 5. e3 {[%emt 0:04:58]} O-O {[%emt 0:01:14]} 6. b3 {[%emt 0:00:13]} b6 {[%emt 0:00:47]} 7. Bb2 {[%emt 0:00:08]} Bb7 {[%emt 0:00:09]} 8. Bd3 {[%emt 0:00:35]} c5 {[%emt 0:00:41]} 9. dxc5 {[%emt 0:02:44]} bxc5 {[%emt 0:00:07]} 10. O-O {[%emt 0:00:57]} Nc6 {[%emt 0:01:38]} 11. cxd5 {[%emt 0:05:01]} exd5 {[%emt 0:01:15]} 12. Rc1 {[%emt 0:01:01] E14: Queen's Indian: Classical Variation (4 e3).} d4 {[%emt 0:08:11]} 13. exd4 {[%emt 0:11:20]} Nxd4 {[%emt 0:00:41] [#]} 14. Nd2 $146 {[%emt 0:02:51]} (14. Nxd4 $14 cxd4 15. Nb5) ({Predecessor:} 14. Nxd4 Qxd4 15. Bc4 Qh4 16. Qe1 Bxg2 17. Kxg2 Qg4+ 18. Kh1 Qf3+ 19. Kg1 Qg4+ 20. Kh1 Qf3+ 21. Kg1 Qg4+ 22. Kh1 Qf3+ {½-½ (22) Stefansson,V (2501)-Mai,A (2177) Selfoss 2022}) 14... Ne6 {[%emt 0:03:16]} ({Black should play} 14... Bd6 $15) 15. Bb1 {[%emt 0:21:31]} Qd4 {[%emt 0:20:54] White must now prevent ...Rad8.} 16. Qc2 {[%emt 0:05:32]} (16. Nc4 $11) 16... Qh4 $1 $15 {[%emt 0:04:15]} 17. Nce4 {[%emt 0:00:51] Against Bd6} (17. Nf3 $2 Bxf3 18. Ne2 Bb7 $19) 17... Nf4 {[%emt 0:16:38]} (17... Ng4 18. Nf3 Qh6 19. h3 $14) 18. Bxf6 {[%emt 0:15:44]} Bxf6 {[%emt 0:02:17]} (18... gxf6 19. Rfe1 $14 (19. Nf3 Qh5 $11)) 19. Nf3 {[%emt 0:02:56]} Qh6 {[%emt 0:04:15] aiming for ...Bd4.} 20. Rfe1 {[%emt 0:00:19]} (20. Nxf6+ $2 gxf6 21. Qf5 Ne2+ 22. Kh1 Nxc1 $19) (20. Rcd1 $15) 20... Rfe8 {[%emt 0:02:09]} (20... Rad8 $17 {Hoping for ...Bd4.} 21. Rcd1 (21. Qxc5 $2 Rc8 $19) (21. Nxf6+ $2 gxf6 22. Re3 Bxf3 $19) 21... Bd4) 21. Rcd1 $11 {[%emt 0:04:07] Inhibits Bd4.} (21. Qxc5 $2 Rec8 22. Qb4 (22. Nxf6+ $2 gxf6 23. Qxc8+ Rxc8 $19) 22... Rxc1 23. Qxb7 Rd8 $1 $19) (21. Nxf6+ gxf6 22. Rxe8+ Rxe8 $17) 21... Be7 {[%emt 0:03:50]} 22. Re3 {[%emt 0:03:08]} Bf8 {[%emt 0:03:48]} (22... Red8 $11) 23. Rde1 {[%emt 0:02:21]} (23. Nxc5 Nh3+ $1 {[%mdl 512]} 24. Kf1 (24. Kh1 $2 Rxe3 25. Nxb7 Rc3 $19) 24... Bxf3 25. Rxf3 Ng5 $17) (23. Neg5 $1 $16 Bxf3 24. Rxf3 (24. Qxh7+ Qxh7 25. Bxh7+ Kh8 $16) 24... Ne2+ 25. Kh1) 23... Re6 {[%emt 0:02:47]} (23... Qg6 $2 {[#]} 24. Nf6+ $1 {[%mdl 512]} gxf6 25. Qxg6+ fxg6 26. Rxe8 $18) (23... Nd5 $11 {keeps the balance.} 24. R3e2 Ba6) 24. Neg5 $16 {[%emt 0:01:17] Pair of Knights!} (24. Nxc5 $2 Bxc5 25. Qxc5 Bxf3 26. Rxe6 Nxe6 $19) 24... Rg6 {[%emt 0:00:53] This move loses the game for Black.} (24... Bxf3 $16 25. Qxh7+ (25. Nxf3 Rd8 $14) (25. Nxe6 Nxg2 26. Ng5 Nxe1 $11) 25... Qxh7 26. Bxh7+ Kh8) 25. Qf5 $18 {[%emt 0:00:53][%csl LRf4,LRf7]} Bxf3 {[%emt 0:04:47]} 26. Qxf7+ {[%emt 0:02:56]} ({Worse is} 26. Rxf3 Qxg5 27. Qxg5 Rxg5 $11) 26... Kh8 {[%emt 0:00:02]} 27. Qxf4 $40 {[%emt 0:03:01][%mdl 128] Nf7+ would kill now. Black is in trouble. Dancing on a razor blade.} Bd5 {[%emt 0:03:34]} (27... Rxg5 {is more resistant.} 28. Qxf3 Rd8) 28. Bxg6 {[%emt 0:01:29]} Qxg6 {[%emt 0:00:03]} 29. Ne4 {[%emt 0:01:22] Inhibits Bd6.} Be7 $2 {[%emt 0:01:06]} (29... c4 30. Qe5 Bg8 31. bxc4 Bxc4) 30. Rg3 {[%emt 0:00:36]} Qe6 {[%emt 0:00:38]} 31. Qg4 {[%emt 0:00:19][%csl Gg3][%cal Rg4g7]} Qe5 {[%emt 0:00:15]} (31... Qxg4 $142 32. Rxg4 Bg8) 32. Rge3 {[%emt 0:00:25]} Qd4 {[%emt 0:03:53]} 33. Rd1 {[%emt 0:01:02]} Be6 {[%emt 0:01:09]} 34. Qe2 {[%emt 0:00:06]} Qb4 {[%emt 0:00:24]} 35. Ng3 {[%emt 0:00:13]} Bg4 {[%emt 0:00:42]} 36. f3 {[%emt 0:00:03]} Bg5 {[%emt 0:00:10]} 37. Re8+ {[%emt 0:00:07] Weighted Error Value: White=0.50/Black=0.66} 1-0

[Event "56th Ilmar Raud Memorial 2022"]
[Site "Viljandi"]
[Date "2022.07.07"]
[Round "6.6"]
[White "Krivenko, Dion"]
[Black "Kanep, Meelis"]
[Result "0-1"]
[ECO "B06"]
[WhiteElo "2090"]
[BlackElo "2417"]
[Annotator "TA"]
[PlyCount "81"]
[EventDate "2022.07.05"]
[EventType "swiss"]
[EventCountry "EST"]
[SourceTitle "playchess.com"]
[Source "ChessBase"]
[SourceQuality "1"]
[TimeControl "40/5400+30:900+30"]

{[%evp 9,81,6,29,-11,-3,-19,-10,-2,36,41,40,38,33,22,18,0,0,-16,0,0,0,-15,-13,-44,-47,-46,-25,-31,-39,-39,-39,-32,-19,-61,-25,-22,-32,-136,-109,-107,-97,-108,-100,-204,-178,-267,-260,-1218,-1153,-1029,-929,-1713,-1541,-1410,-1315,-1205,-1181,-1181,-1158,-918,-927,-914,-912,-891,-885,-848,-840,-1144,-1143,-1134,-1125,-947,-815,-5473]} 1. e4 {[%emt 0:00:02]} g6 {[%emt 0:00:22]} 2. d4 {[%emt 0:00:06]} Bg7 {[%emt 0:00:07]} 3. Nc3 {[%emt 0:00:05]} d6 {[%emt 0:00:33]} 4. Bg5 {[%emt 0:01:21]} a6 {[%emt 0:00:42]} 5. f4 {[%emt 0:00:33]} Nd7 {[%emt 0:00:57]} 6. Be2 {[%emt 0:03:05] B06: Modern Defence.} c5 {[%emt 0:01:20]} 7. Nf3 {[%emt 0:05:37]} cxd4 {[%emt 0:04:52]} 8. Nxd4 {[%emt 0:00:20] The position is equal.} Ngf6 {[%emt 0:00:22]} 9. Qd2 {[%emt 0:02:17] [#]} Nc5 $146 {[%emt 0:15:44]} ({Predecessor:} 9... O-O 10. Nb3 b5 11. Bf3 Rb8 12. O-O Bb7 13. Rfe1 b4 14. Nd1 Qb6+ 15. Kh1 e5 16. a3 bxa3 17. Rxa3 Rfc8 18. Nc3 h6 19. Bh4 exf4 20. Bf2 Qc7 21. Qxf4 Ne5 {½-½ (21) Schneider,B (2254)-Fritsch,R (2242) Germany 2009}) 10. Bf3 {[%emt 0:04:18]} h6 {[%emt 0:00:25]} 11. Bxf6 {[%emt 0:06:42]} (11. Bh4 {keeps more tension.} e5 12. fxe5 dxe5 13. Nb3) 11... Bxf6 {[%emt 0:02:41]} 12. O-O-O {[%emt 0:00:09]} e5 $1 {[%emt 0:04:48]} 13. Nde2 {[%emt 0:01:25]} exf4 {[%emt 0:02:48]} 14. Nxf4 {[%emt 0:08:07]} O-O {[%emt 0:05:17]} 15. Kb1 {[%emt 0:02:39]} ({Avoid the trap} 15. Qxd6 $2 Qxd6 16. Rxd6 Be5 17. Nxg6 Bxd6 $19) (15. g4 {feels hotter.} Be6 16. Kb1 Qb6 17. b3) 15... Be5 {[%emt 0:05:10]} 16. Nd3 {[%emt 0:09:12]} Nxd3 {[%emt 0:00:22]} 17. cxd3 {[%emt 0:00:08]} Bg7 {[%emt 0:02:11]} (17... Be6 {is interesting.} 18. Ne2 Rc8 19. Rhe1 Re8) 18. Nd5 {[%emt 0:01:48]} Be6 {[%emt 0:02:38]} 19. Nf4 {[%emt 0:00:31]} Bd7 {[%emt 0:00:45][%cal Be6d7,Bd7c6,Bc6a4][%mdl 32]} 20. h4 {[%emt 0:03:42]} a5 {[%emt 0:05:18]} 21. d4 {[%emt 0:02:00]} Bc6 {[%emt 0:07:23]} 22. Ne2 {[%emt 0:04:41]} Re8 {[%emt 0:08:34]} 23. Ng3 {[%emt 0:01:44] White is on the road to losing.} (23. Qd3 $15) 23... Ba4 {[%emt 0:03:17]} 24. b3 {[%emt 0:09:41]} Bc6 {[%emt 0:01:28] Hoping for ...h5.} 25. h5 {[%emt 0:03:30] [#]} g5 {[%emt 0:00:36]} 26. Qd3 {[%emt 0:03:28]} (26. Nf5 $17) 26... a4 $19 {[%emt 0:00:45] And now ...axb3 would win.} 27. Nf5 {[%emt 0:00:34]} (27. b4 $142) 27... axb3 {[%emt 0:00:54]} 28. axb3 $2 {[%emt 0:03:05]} (28. Qxb3 Ba4 29. Qc3) 28... Qa5 {[%emt 0:00:59] Black is clearly winning.} 29. Kb2 {[%emt 0:03:26] Prevents Qa1+.} Qa2+ {[%emt 0:02:16]} 30. Kc1 {[%emt 0:02:17] [#]} Bxe4 $1 {[%emt 0:06:23][%mdl 512]} 31. Bxe4 {[%emt 0:00:29]} Rac8+ {[%emt 0:00:25]} 32. Qc2 {[%emt 0:00:13]} Rxc2+ {[%emt 0:02:53]} 33. Bxc2 {[%emt 0:00:25]} Qa3+ {[%emt 0:04:38]} 34. Kd2 {[%emt 0:01:00]} Qa5+ {[%emt 0:00:13]} 35. Kc1 {[%emt 0:00:30]} Re2 {[%emt 0:00:46] ( -> ...Qa1+)} 36. Kb1 {[%emt 0:03:03] [#] Prevents Qa1+.} Rxc2 $1 {[%emt 0:00:36][%csl Gc2][%cal Ra5a2][%mdl 512]} 37. Ne7+ {[%emt 0:00:04]} Kf8 {[%emt 0:00:26][%csl Gc2][%cal Ra5a2]} 38. Ng6+ {[%emt 0:00:14]} fxg6 {[%emt 0:00:13][%csl Gc2][%cal Ra5a2]} 39. Rhf1+ {[%emt 0:00:14]} Kg8 {[%emt 0:00:17][%csl Gc2][%cal Ra5a2]} 40. Kxc2 {[%emt 0:00:00]} gxh5 {[%emt 0:00:00]} 41. Rf8+ {[%emt 0:00:22] Weighted Error Value: White=0.60/Black=0.16 (very precise)} 0-1

[Event "56th Ilmar Raud Memorial 2022"]
[Site "Viljandi"]
[Date "2022.07.08"]
[Round "7.1"]
[White "Pultinevicius, Paulius"]
[Black "Laurusas, Tomas"]
[Result "1/2-1/2"]
[ECO "B14"]
[WhiteElo "2539"]
[BlackElo "2561"]
[Annotator "TA"]
[PlyCount "83"]
[EventDate "2022.07.05"]
[EventType "swiss"]
[EventCountry "EST"]
[SourceTitle "playchess.com"]
[Source "ChessBase"]
[SourceQuality "1"]
[TimeControl "40/5400+30:900+30"]

{[%evp 14,83,8,12,23,16,18,20,33,26,18,29,31,0,0,0,38,8,23,25,30,26,44,41,49,34,44,33,31,22,23,24,39,17,79,86,83,27,84,20,20,16,74,64,95,97,66,59,54,43,48,43,45,58,37,8,14,16,59,65,60,29,29,29,29,29,29,29,43,43,43,43]} 1. c4 {[%emt 0:00:03]} c6 {[%emt 0:02:34]} 2. e4 {[%emt 0:00:05]} d5 {[%emt 0:00:27]} 3. exd5 {[%emt 0:00:05]} cxd5 {[%emt 0:00:04]} 4. d4 {[%emt 0:00:19]} Nf6 {[%emt 0:00:52]} 5. Nc3 {[%emt 0:00:06]} e6 {[%emt 0:00:05]} 6. Nf3 {[%emt 0:00:12]} Bb4 $1 {[%emt 0:00:07] The main line 6...Bb4 scores better than 6...Be7.} 7. cxd5 {[%emt 0:00:08]} Nxd5 {[%emt 0:00:05]} 8. Bd2 {[%emt 0:00:06]} Bd7 {[%emt 0:00:04] [#] B14: Caro-Kann: Panov-Botvinnik Attack with 5...e6 and 5...g6.} 9. a3 $146 {[%emt 0:29:22]} ({Predecessor:} 9. Bd3 Bc6 10. O-O Nd7 11. Re1 Be7 12. Rc1 O-O 13. Bb1 Rc8 14. Qe2 Nxc3 15. Rxc3 Bd5 16. Rxc8 Qxc8 {½-½ (40) Murzin,V (2502)-Artemiev,V (2704) Krasnaya Polyana 2021}) 9... Nxc3 {[%emt 0:02:56]} 10. bxc3 {[%emt 0:00:12]} Bd6 {[%emt 0:02:46] The position is equal.} 11. Bd3 {[%emt 0:01:09]} Bc6 {[%emt 0:00:26]} 12. O-O {[%emt 0:01:51]} Nd7 {[%emt 0:00:17]} 13. Re1 {[%emt 0:01:53]} (13. c4 $5 {[%cal Rd2b4]}) 13... O-O {[%emt 0:06:40]} 14. c4 {[%emt 0:01:39]} Be7 {[%emt 0:21:11][%cal Od7c5]} 15. Bf4 {[%emt 0:04:11][%cal Od4d5]} Bf6 {[%emt 0:13:52]} 16. Bd6 {[%emt 0:04:25]} Re8 $1 {[%emt 0:00:10]} 17. Ne5 {[%emt 0:03:56][%cal Oe5f7] [#] Nxf7! is the strong threat.} Bxe5 {[%emt 0:05:19]} 18. dxe5 {[%emt 0:00:21]} Qg5 {[%emt 0:01:06][%csl Gc6][%cal Rg5g2] Inhibits Qg4.} 19. g3 $36 {[%emt 0:00:47][%mdl 2048] White has some pressure.} b6 {[%emt 0:03:24]} 20. h4 {[%emt 0:08:43]} Qh6 {[%emt 0:02:39]} 21. Bc2 {[%emt 0:08:03]} Nc5 {[%emt 0:05:39]} 22. Qe2 {[%emt 0:08:48]} Rac8 {[%emt 0:03:40]} 23. a4 {[%emt 0:00:26]} f5 {[%emt 0:04:13]} (23... Nb7 $11) 24. exf6 $1 $16 {[%emt 0:00:55]} Qxf6 {[%emt 0:00:05]} 25. Ra3 {[%emt 0:02:00] Prevents Qf3.} ({Much worse is} 25. Qh5 $6 g6 26. Qe2 e5 27. Bxc5 bxc5 $11) ({White should play} 25. Bxc5 $16 bxc5 26. Be4) 25... Rcd8 {[%emt 0:05:22]} (25... Nd7 $1 $11 {remains equal.}) 26. Bf4 {[%emt 0:02:34] This bishop pair is nice.} (26. Bxc5 $16 {And now Bb4 would win.} bxc5 27. Re3) 26... Qf7 $11 {[%emt 0:01:23]} 27. a5 {[%emt 0:00:43]} Ba8 {[%emt 0:04:39]} (27... e5 $11 {keeps the balance.} 28. Bxe5 Nd7) 28. axb6 $16 {[%emt 0:01:38]} Qb7 {[%emt 0:00:20][%csl Ga8][%cal Rb7h1] [#]} 29. f3 {[%emt 0:00:05] Active counter play!} axb6 {[%emt 0:00:09]} 30. Re3 {[%emt 0:02:35]} Rf8 {[%emt 0:00:27]} 31. Bb1 {[%emt 0:01:45]} e5 {[%emt 0:04:22]} 32. Rxe5 {[%emt 0:10:31] Hoping for Re7.} Qxf3 {[%emt 0:00:06]} 33. Qxf3 {[%emt 0:00:04]} Bxf3 {[%emt 0:00:03]} 34. R5e3 {[%emt 0:00:37] Against Nd3} Bc6 {[%emt 0:05:56]} 35. Re7 {[%emt 0:03:13]} Nd3 {[%emt 0:01:49]} 36. Bxd3 {[%emt 0:00:13]} Rxd3 {[%emt 0:00:01]} 37. R1e6 {[%emt 0:00:49]} Rd7 {[%emt 0:01:41]} ({Much less strong is} 37... Rd1+ 38. Kf2 Rd7 39. Rxd7 Bxd7 40. Rxb6 $16) 38. Rxd7 {[%emt 0:00:08]} Bxd7 {[%emt 0:00:00]} 39. Rxb6 {[%emt 0:00:09]} Rc8 {[%emt 0:00:06]} 40. Rb7 {[%emt 0:00:00]} Bg4 {[%emt 0:00:00]} 41. Be5 {[%emt 0:05:08]} g6 {[%emt 0:03:11]} 42. Rg7+ {[%emt 0:04:12] Weighted Error Value: White=0.12 (very precise) /Black=0.15 (very precise)} 1/2-1/2